{"text_format":"1","workbook":"xlsx","n_sheets":2,"sheets":["Шаблон подгрузки PRICAT","Список регионов"],"not_rendered":{"charts":0,"images":1,"macros":1,"external_links":0,"defined_names":0,"comments":0,"pivot_tables":0},"unopened":[],"bounds":{"document_bytes":16777216,"sheet_cells":100000,"rows_first":2000,"rows_last":500,"rows_between":2000,"halvings":0,"cell_chars":16384,"cell_head_chars":4096},"cells_cut":0,"cells_raw":0,"read":"whole","date_system":"1900"}

{"sheet":"Шаблон подгрузки PRICAT","index":0,"n_rows":37,"n_cols":11,"rows_kept":37,"cut":false,"hidden":false,"merged":[[17,3,17,4],[12,3,12,4],[13,3,13,4],[14,3,14,4],[15,3,15,4],[16,3,16,4],[11,3,11,4],[4,1,4,2],[5,5,5,10],[9,6,9,8],[9,9,9,10],[9,1,9,4],[7,1,7,2],[8,1,8,2],[36,1,36,10],[0,5,0,10],[10,3,10,4],[10,9,10,10],[2,5,2,10],[3,3,3,10],[0,1,0,2],[1,1,1,2],[2,1,2,2],[5,1,5,2],[6,1,6,2],[1,5,1,10],[6,5,6,10],[7,5,7,10],[8,5,8,10],[4,5,4,10],[18,3,18,4],[19,3,19,4],[21,3,21,4],[22,3,22,4],[23,3,23,4],[20,3,20,4],[24,3,24,4],[25,3,25,4],[26,3,26,4],[27,3,27,4],[28,3,28,4],[34,3,34,4],[35,3,35,4],[29,3,29,4],[30,3,30,4],[31,3,31,4],[32,3,32,4],[33,3,33,4]]}
[null,"Прайс-лист",null,null,"формат ввода","действие по умолчанию / комментарии"]
["Price Catalog","Номер документа",null,null,null,"по умолчанию сгенерируется уникальный номер на основании текущей даты и времени"]
[null,"Дата документа",null,null,"DD.MM.YYYY","по умолчанию подставится текущая дата"]
[null,"Поставщик"]
[1,"GLN поставщика"]
[null,"Статус",null,"Акционный",null,"для выбора другого значения нажмите на кнопку \"Тип каталога\""]
[null,"Номер Договора поставки"]
[null,"Вступает в силу с даты",null,null,"DD.MM.YYYY","по умолчанию подставится текущая дата"]
[null,"Дата окончания действия",null,null,"DD.MM.YYYY","обязательно заполнять, если тип каталога \"Акционный\""]
[null,null,null,null,null,null,"* в качестве разделителя целой и дробной части используйте запятую",null,null,"** для выбора узлов из списка нажмите на кнопку \"Изменить\" в строке, которую хотите заполнить"]
["94009;94010;94011;94020;94021;94022;94023;94024;94025;94026;94037;94051;94052;94053;94054;94056;94067;94077;94078;94027;94028;94029;94030;94031;94050;94032;94070;94075","№ п/п","Штрихкод","Наименование товара",null,"Ед. изм.","НОВАЯ закупочная цена без НДС, руб *","Текущая ставка НДС, %","НОВАЯ закупочная цена с НДС, руб *","Узел комм.сети (терр/РЦ) **"]
[null,1,null,null,null,"ШТ","0,00",20,{"$f":"ROUND(ROUND(G12,2)*(1+H12/100),2)","v":{"$error":"#VALUE!"}},null,""]
[null,2,null,null,null,null,"0,00",null,{"$error":"#VALUE!"}]
[null,3,null,null,null,null,"0,00",null,{"$error":"#VALUE!"}]
[null,4,null,null,null,null,"0,00",null,{"$error":"#VALUE!"}]
[null,5,null,null,null,null,"0,00",null,{"$error":"#VALUE!"}]
[null,6,null,null,null,null,"0,00",null,{"$error":"#VALUE!"}]
[null,7,null,null,null,null,"0,00",null,{"$error":"#VALUE!"}]
[null,8,null,null,null,null,"0,00",null,{"$error":"#VALUE!"}]
[null,9,null,null,null,null,"0,00",null,{"$error":"#VALUE!"}]
[null,10,null,null,null,null,"0,00",null,{"$error":"#VALUE!"}]
[null,11,null,null,null,null,"0,00",null,{"$error":"#VALUE!"}]
[null,12,null,null,null,null,"0,00",null,{"$error":"#VALUE!"}]
[null,13,null,null,null,null,"0,00",null,{"$error":"#VALUE!"}]
[null,14,null,null,null,null,"0,00",null,{"$error":"#VALUE!"}]
[null,15,null,null,null,null,"0,00",null,{"$error":"#VALUE!"}]
[null,16,null,null,null,null,"0,00",null,{"$error":"#VALUE!"}]
[null,17,null,null,null,null,"0,00",null,{"$error":"#VALUE!"}]
[null,18,null,null,null,null,"0,00",null,{"$error":"#VALUE!"}]
[null,19,null,null,null,null,"0,00",null,{"$error":"#VALUE!"}]
[null,20,null,null,null,null,"0,00",null,{"$error":"#VALUE!"}]
[null,21,null,null,null,null,"0,00",null,{"$error":"#VALUE!"}]
[null,22,null,null,null,null,"0,00",null,{"$error":"#VALUE!"}]
[null,23,null,null,null,null,"0,00",null,{"$error":"#VALUE!"}]
[null,24,null,null,null,null,"0,00",null,{"$error":"#VALUE!"}]
[null,25,null,null,null,null,"0,00",null,{"$f":"ROUND(ROUND(G36,2)*(1+H36/100),2)","v":{"$error":"#VALUE!"}}]
[null,"Введите целое число от 1 до 100 и нажмите на кнопку \"Добавить строки\". "]

{"sheet":"Список регионов","index":1,"n_rows":29,"n_cols":4,"rows_kept":29,"cut":false,"hidden":false,"merged":[]}
["Код Узла","Описание","Регион","АО \"ДИКСИ ЮГ\""]
[94009,"РЦ ЦФО","ЦЕНТРАЛЬНЫЙ"]
[94010,"РЦ СЗФО","СЕВЕРО-ЗАПАДНЫЙ"]
[94011,"РЦ УФО","УРАЛЬСКИЙ"]
[94020,"МОСКОВСКАЯ ОБЛАСТЬ","ЦЕНТРАЛЬНЫЙ"]
[94021,"МОСКВА","ЦЕНТРАЛЬНЫЙ"]
[94022,"ЯРОСЛАВСКАЯ ОБЛАСТЬ","ЦЕНТРАЛЬНЫЙ"]
[94023,"КОСТРОМСКАЯ ОБЛАСТЬ","ЦЕНТРАЛЬНЫЙ"]
[94024,"КАЛУЖСКАЯ ОБЛАСТЬ","ЦЕНТРАЛЬНЫЙ"]
[94025,"СМОЛЕНСКАЯ ОБЛАСТЬ","ЦЕНТРАЛЬНЫЙ"]
[94026,"РЯЗАНСКАЯ ОБЛАСТЬ","ЦЕНТРАЛЬНЫЙ"]
[94037,"ВЛАДИМИРСКАЯ ОБЛАСТЬ","ЦЕНТРАЛЬНЫЙ"]
[94051,"БРЯНСКАЯ ОБЛАСТЬ","ЦЕНТРАЛЬНЫЙ"]
[94052,"ИВАНОВСКАЯ ОБЛАСТЬ","ЦЕНТРАЛЬНЫЙ"]
[94053,"ТВЕРСКАЯ ОБЛАСТЬ","ЦЕНТРАЛЬНЫЙ"]
[94054,"ТУЛЬСКАЯ ОБЛАСТЬ","ЦЕНТРАЛЬНЫЙ"]
[94056,"НИЖЕГОРОДСКАЯ ОБЛАСТЬ","ЦЕНТРАЛЬНЫЙ"]
[94067,"ОРЛОВСКАЯ ОБЛАСТЬ","ЦЕНТРАЛЬНЫЙ"]
[94077,"АРХАНГЕЛЬСКАЯ ОБЛАСТЬ","ЦЕНТРАЛЬНЫЙ"]
[94078,"ВОЛОГОДСКАЯ ОБЛАСТЬ","ЦЕНТРАЛЬНЫЙ"]
[94027,"САНКТ-ПЕТЕРБУРГ","СЕВЕРО-ЗАПАДНЫЙ"]
[94028,"ЛЕНИНГРАДСКАЯ ОБЛАСТЬ","СЕВЕРО-ЗАПАДНЫЙ"]
[94029,"ПСКОВСКАЯ ОБЛАСТЬ","СЕВЕРО-ЗАПАДНЫЙ"]
[94030,"НОВГОРОДСКАЯ ОБЛАСТЬ","СЕВЕРО-ЗАПАДНЫЙ"]
[94031,"КАРЕЛИЯ","СЕВЕРО-ЗАПАДНЫЙ"]
[94050,"МУРМАНСКАЯ ОБЛАСТЬ","СЕВЕРО-ЗАПАДНЫЙ"]
[94032,"ЧЕЛЯБИНСКАЯ ОБЛАСТЬ","УРАЛЬСКИЙ"]
[94070,"СВЕРДЛОВСКАЯ ОБЛАСТЬ","УРАЛЬСКИЙ"]
[94075,"ТЮМЕНСКАЯ ОБЛАСТЬ","УРАЛЬСКИЙ"]